Cogmind - Beta 13 @@@ ROGUE MODE // 2024.06.01 @ 10:30:18 Player: Minty Result: Destroyed self with Grenade Launcher Performance ------------- Evolutions (1) 500 Regions Visited (3) 600 Robots Destroyed (45) 225 Value Destroyed (947) 947 Prototype IDs (1) 20 Alien Tech Used (0) 0 Bonus (106) 106 TOTAL SCORE: 2398 Bonus ------- High Alert Combat Kills 106 Cogmind --------- Core Integrity 0/400 Matter 251/300 Energy 99/100 System Corruption 1% Temperature Cool (6) Movement Core (300) Ox5 Location -9/Materials Parts ------- > --- POWER (1) -------- (None) > --- PROPULSION (2) --- (None) > --- UTILITY (4) ------ Medium Storage Unit Visual Processing Unit Signal Interpreter > --- WEAPON (2) ------- Heavy Assault Rifle Grenade Launcher > --- INVENTORY (10) --- Aerolev Unit Aerolev Unit Aerolev Unit Medium Matter Pod (100) Medium Matter Pod (100) Improved Terrain Scanner Particle Gun Improved Light Cannon Blade Trap Peak State ------------ > --- POWER ------------ Deuterium Engine > --- PROPULSION ------- Aerolev Unit Aerolev Unit > --- UTILITY ---------- Medium Storage Unit Visual Processing Unit Sensor Array Signal Interpreter > --- WEAPON ----------- Heavy Assault Rifle Heavy Assault Rifle > --- INVENTORY -------- Deuterium Engine Aerolev Unit Aerolev Unit Medium Matter Pod Medium Matter Pod Improved Terrain Scanner Particle Gun Improved Light Cannon Blade Trap Blade Trap [Rating: 22] Favorites ----------- Power Deuterium Engine Engine Deuterium Engine Propulsion Aerolev Unit Leg Aluminum Leg Wheel Wheel Hover Unit Aerolev Unit Utility Medium Storage Unit Device Sensor Array Storage Medium Storage Unit Processor Visual Processing Unit Weapon Heavy Assault Rifle Energy Gun Particle Gun Ballistic Gun Heavy Assault Rifle Ballistic Cannon Improved Light Cannon Launcher Grenade Launcher Build | -11 -10 -10 -9 ------- Run | Yrd Mat Min Mat Slots Evolved 2 | . . . 2 Power . | . . . . Propulsion . | . . . . Utility 2 | . . . 2 Weapon . | . . . . Parts Attached 24 | . 2 4 18 Power 2 | . . . 2 Engine 2 | . . . 2 Core . | . . . . Reactor . | . . . . Propulsion 9 | . . 2 7 Treads . | . . . . Leg . | . . . . Wheel 5 | . . 2 3 Hover 4 | . . . 4 Flight . | . . . . Utility 4 | . 2 . 2 Device 1 | . 1 . . Storage 1 | . 1 . . Processor 2 | . . . 2 Hackware . | . . . . Protection . | . . . . Artifact . | . . . . Weapon 9 | . . 2 7 Energy Gun 1 | . . . 1 Energy Cannon . | . . . . Ballistic Gun 5 | . . 2 3 Ballistic Cannon 1 | . . . 1 Launcher 2 | . . . 2 Special Weapon . | . . . . Impact Weapon . | . . . . Slashing Weapon . | . . . . Piercing Weapon . | . . . . Special Melee Weapon . | . . . . Unidentified Prototypes 1 | . . . 1 Parts Lost 10 | . . . 10 Power 2 | . . . 2 Propulsion 4 | . . . 4 Utility 1 | . . . 1 Weapon 3 | . . . 3 Highest Loss Streak 3 | . . . 3 To Critical Strikes . | . . . . Average Slot Usage (%) 92 | . 93 100 87 Engine 12 | . 14 14 10 Leg 4 | . 28 4 . Wheel 8 | . . 23 2 Hover 8 | . . . 15 Device 10 | . 8 14 9 Storage 12 | . 14 14 11 Processor 10 | . . . 17 Energy Gun 2 | . . . 3 Ballistic Gun 20 | . 28 28 15 Naked Turns . | . . . . Heaviest Build 27 | 14 20 22 27 Greatest Support 20 | 20 20 20 20 Greatest Overweight (x) 8 | . . 1 8 Average Overweight (x) . | . . . 1 Largest Inventory Capacity 10 | 8 10 10 10 Average Capacity 9 | 8 9 10 10 Most Carried 10 | 6 10 10 10 Average Carried 9 | 6 7 9 8 Final Capacity 10 | 8 10 10 10 Final Carried 10 | 6 10 10 9 Class Distribution -------------------- 54% | Mutant 33% | Scavenger-Skirmisher 11% | Scavenger-Mutant Dominant Class ---------------- Mutant | -10/Materials Mutant | -10/Mines Scavenger-Skirmisher | -9/Materials Resources | -11 -10 -10 -9 ----------- Run | Yrd Mat Min Mat Matter Collected 1139 | 200 42 137 760 Remotely . | . . . . Salvage Created 1251 | . 85 . 1166 Parts 101 | . 13 . 88 Haulers Intercepted 1 | . . . 1 Recyclers Shooed 1 | . . . 1 Parts Field Recycled . | . . . . Retrieved Matter . | . . . . Parts Self-Destructed . | . . . . Prevented . | . . . . Kills | -11 -10 -10 -9 ------- Run | Yrd Mat Min Mat Combat Hostiles Destroyed 31 | . 3 . 28 Guns 20 | . 3 . 17 Cannons 8 | . . . 8 AOE 3 | . . . 3 Classes Destroyed 10 | . 3 . 7 Worker 4 | . . . 4 Builder 3 | . . . 3 Tunneler 1 | . 1 . . Hauler 1 | . . . 1 Recycler 1 | . . . 1 Mechanic 1 | . . . 1 Watcher 3 | . 1 . 2 Swarmer 13 | . 3 . 10 Grunt 11 | . . . 11 Sentry 7 | . . . 7 Best Kill Streak 7 | . 4 . 7 Combat Bots Only 5 | . 3 . 5 Max Kills in Single Turn 3 | . 1 . 3 Gunslinging . | . . . . Exploded 3 | . . . 3 Melee . | . . . . Uniques/NPCs Destroyed . | . . . . Combat | -11 -10 -10 -9 -------- Run | Yrd Mat Min Mat Hostile Shots Fired 171 | . 10 3 158 Missed 43 | . 3 1 39 Damage Taken 1613 | . 50 41 1522 Core 414 | . . . 414 Absorbed by Shields . | . . . . Core Remaining (%) 100 | 100 . 100 . Volleys Fired 112 | . 9 6 97 Largest 2 | . 2 2 2 Hottest 95 | . 40 46 95 Shots Fired 200 | . 18 12 170 Gun 173 | . 18 12 143 Cannon 23 | . . . 23 Launcher 4 | . . . 4 Special . | . . . . Kinetic 172 | . 18 12 142 Thermal 24 | . . . 24 Explosive 4 | . . . 4 Electromagnetic . | . . . . Robot Hit Streak 13 | . 2 4 13 Robot Miss Streak 6 | . 3 1 6 Penetration Max . | . . . . Secondary Targets 2 | . . . 2 Max Gunslinging Chain 1 | . . . 1 Shots Hit Robots 116 | . 6 4 106 Core Hits 57 | . 5 . 52 Critical Kills . | . . . . Critical Parts Destroyed . | . . . . Critical Strikes 2 | . . . 2 Burn 1 | . . . 1 Blast 1 | . . . 1 Melee Attacks . | . . . . Impact . | . . . . Slashing . | . . . . Piercing . | . . . . Sneak Attacks . | . . . . Combat Hostiles . | . . . . Follow-up Attacks . | . . . . Damage Inflicted 2074 | . 84 52 1938 Guns 1475 | . 84 52 1339 Cannons 345 | . . . 345 Explosions 253 | . . . 253 Melee . | . . . . Ramming 1 | . . . 1 Kinetic 1611 | . 84 52 1475 Thermal 209 | . . . 209 Explosive 253 | . . . 253 Electromagnetic . | . . . . Impact . | . . . . Slashing . | . . . . Piercing . | . . . . Highest Corruption 1 | . . . 1 Average Corruption 1 | . . . 1 Corruption Purged . | . . . . Corruption Blocked . | . . . . Effects 4 | . . . 4 Message Errors 2 | . . . 2 Matter Fused 2 | . . . 2 Overload Shots . | . . . . Overflow Damage 6 | . . . 6 Projectiles . | . . . . Explosions 6 | . . . 6 Melee . | . . . . Knockbacks 5 | . . . 5 Impact . | . . . . Kinetic 4 | . . . 4 Secondary 1 | . . . 1 Self-Inflicted Damage 84 | . . . 84 Shots 3 | . . . 3 Rammed 1 | . . . 1 Targets Rammed 1 | . . . 1 Kicked . | . . . . Crushed . | . . . . Highest Temperature 125 | . . 2 125 Average Temperature 30 | . . 2 30 Received Heat Transfer 489 | . . 24 465 Siege Activations . | . . . . Robots Corrupted . | . . . . Combat Hostiles . | . . . . Parts Fried . | . . . . Impact Corruptions . | . . . . Robots Melted . | . . . . Combat Hostiles . | . . . . Parts Melted 1 | . . . 1 Heat Transferred 592 | . . . 592 Parts Sabotaged . | . . . . Parts Stolen . | . . . . Parts Stripped . | . . . . Power Chain Reactions . | . . . . Alert | -11 -10 -10 -9 ------- Run | Yrd Mat Min Mat Peak Influence 570 | . 97 37 570 Initial 37 | . . 37 9 Average 188 | . 49 30 299 Maximum Alert Level 2 | . . . 2 Low Security (%) 59 | 100 100 100 30 Level 1 17 | . . . 30 Level 2 22 | . . . 38 Level 3 . | . . . . Level 4 . | . . . . Level 5 . | . . . . High Security . | . . . . Max Security . | . . . . Squads Dispatched 4 | . . . 4 Investigation 2 | . . . 2 Extermination . | . . . . Reinforcement 1 | . . . 1 Assault 1 | . . . 1 Garrison . | . . . . Intercept . | . . . . Searches Triggered . | . . . . Construction Impeded . | . . . . Haulers Reinforced . | . . . . Active Scanning Responses . | . . . . Cargo Convoy Interrupts . | . . . . Stealth | -11 -10 -10 -9 --------- Run | Yrd Mat Min Mat Distress Signals 3 | . . . 3 Communications Jammed . | . . . . Distress Signals . | . . . . Times Spotted 54 | . 4 3 47 Peak Tracking Total 5 | . 3 2 5 Tactical Retreats 4 | . . . 4 Traps | -11 -10 -10 -9 ------- Run | Yrd Mat Min Mat Traps Triggered 2 | . . . 2 Indirectly . | . . . . Trap Hack Attempts . | . . . . Triggered . | . . . . Disarmed . | . . . . Reprogrammed 10 | . . . 10 Reused 5 | . . . 5 Traps Extracted . | . . . . Installed 2 | . . 1 1 Triggered 5 | . . . 5 Most Traps Carried 2 | . . 2 2 Machines | -11 -10 -10 -9 ---------- Run | Yrd Mat Min Mat Machines Disabled 2 | . . 1 1 Max in Single Turn 1 | . . 1 1 Machines Repaired . | . . . . Machines Dismantled . | . . . . Machines Sabotaged . | . . . . Overloaded Fab Kills . | . . . . Hacking | -11 -10 -10 -9 --------- Run | Yrd Mat Min Mat Machines Accessed 3 | . . . 3 Terminals 2 | . . . 2 Fabricators . | . . . . Repair Stations . | . . . . Recycling Units 1 | . . . 1 Scanalyzers . | . . . . Garrison Access . | . . . . Total Hacks 14 | . . . 14 Successful 6 | . . . 6 Failed 8 | . . . 8 Catastrophic 4 | . . . 4 Database Lockouts . | . . . . Manual 9 | . . . 9 Terminals 9 | . . . 9 Fabricators . | . . . . Repair Stations . | . . . . Recycling Units 5 | . . . 5 Scanalyzers . | . . . . Garrison Access . | . . . . Terminal Hacks 2 | . . . 2 Reprogram Traps 2 | . . . 2 Fabricator Hacks . | . . . . Repair Station Hacks . | . . . . Recycling Unit Hacks 4 | . . . 4 Report Inventory 2 | . . . 2 Retrieve Components 2 | . . . 2 Scanalyzer . | . . . . Garrison Access Hacks . | . . . . Unauthorized Hacks . | . . . . Terminals . | . . . . Fabricators . | . . . . Repair Stations . | . . . . Recycling Units . | . . . . Scanalyzers . | . . . . Garrison Access . | . . . . Data Cores Recovered . | . . . . Used . | . . . . Hacking Detections 2 | . . . 2 Full Trace Events 2 | . . . 2 Feedback Events 1 | . . . 1 Corruption 1 | . . . 1 Feedback Blocked . | . . . . Robot Schematics Acquired . | . . . . Robots Built . | . . . . Authchips . | . . . . Time . | . . . . Total Robot Build Rating . | . . . . Part Schematics Acquired . | . . . . Parts Built . | . . . . Authchips . | . . . . Time . | . . . . Total Part Build Rating . | . . . . Parts Repaired . | . . . . Time . | . . . . Parts Recycled . | . . . . Recycled Matter . | . . . . Retrieved Matter . | . . . . Retrieved Components . | . . . . Parts Scanalyzed . | . . . . Part Schematics Acquired . | . . . . Parts Damaged . | . . . . Bothacking | -11 -10 -10 -9 ------------ Run | Yrd Mat Min Mat Used RIF Installer . | . . . . Robots Hacked . | . . . . Non-combat . | . . . . Combat . | . . . . Robot Hacks Applied . | . . . . Relay Couplers Released . | . . . . Fabnet Peak Effective % . | . . . . Robots Rewired . | . . . . Allies Hacked . | . . . . Hacks Repelled . | . . . . Allies | -11 -10 -10 -9 -------- Run | Yrd Mat Min Mat Total Allies . | . . . . Largest Group . | . . . . Highest-Rated Group . | . . . . Highest-Rated Ally . | . . . . Total Orders . | . . . . Ally Attacks . | . . . . Total Damage . | . . . . Kills . | . . . . Allies Corrupted . | . . . . Allies Melted . | . . . . Intel | -11 -10 -10 -9 ------- Run | Yrd Mat Min Mat Robot Analysis Total . | . . . . Derelict Logs Recovered 1 | . . 1 . Drone Launches . | . . . . Drone Recoveries . | . . . . Exploration | -11 -10 -10 -9 ------------- Run | Yrd Mat Min Mat Turns Passed 1525 | 2 145 494 884 Spaces Moved 745 | 2 90 241 412 Core 1 | . . . 1 Treads . | . . . . Legs 146 | 2 90 54 . Wheels 250 | . . 187 63 Hover 348 | . . . 348 Flight . | . . . . Fastest Speed 80 | 120 120 80 95 Average Speed 115 | 120 120 92 127 Slowest Speed 450 | 120 120 120 450 Overloaded Moves . | . . . . Propulsion Burnouts . | . . . . Robots Hopped . | . . . . Cave-ins Triggered . | . . . . Exploration Rate (%) 27 | 1 16 44 47 Regions Visited 3 Branch Regions 1 Pre-discovered Areas 1 | . . 1 . Known Exits Taken . | . . . . Unknown Exits Taken 3 | 1 1 1 . Scrap Searched 1 | . . 1 . Spaces Dug . | . . . . Terrain Destroyed 32 | . . 10 22 Melee . | . . . . Projectile . | . . . . AOE 32 | . . 10 22 Terrain Rammed . | . . . . Walls Destroyed . | . . . . Machines Disabled . | . . . . Actions | -11 -10 -10 -9 --------- Run | Yrd Mat Min Mat Total 1220 | 1 110 503 606 Wait 294 | . . 236 58 Move 742 | 1 89 240 412 Hop . | . . . . Pick Up 19 | . 6 7 6 Fast Attach 12 | . 2 1 9 Attach 7 | . . 2 5 Detach 5 | . 1 . 4 Swap 5 | . . 1 4 Drop 21 | . 3 9 9 Fire 112 | . 9 6 97 Melee . | . . . . Ram 1 | . . . 1 Kick . | . . . . Crush . | . . . . Escape Stasis . | . . . . Rewire . | . . . . Trap 2 | . . 1 1 Miscellaneous . | . . . . Route ------- -11/Scrapyard -10/Materials -10/Mines -9/Materials (discovered 2 exits: *Mat / [*Min]) History --------- Turn | Location | Event 1 | -11/Scrapyard | Discovered new exit (range 1) 3 | -11/Scrapyard | Entered Materials 113 | -10/Materials | Discovered new exit (range 7) 148 | -10/Materials | Entered Mines 157 | -10/Mines | Learned location of Storage (-9) 168 | -10/Mines | Found a hidden stash of uninstalled traps 300 | -10/Mines | Build established: Mutant 524 | -10/Mines | Excavation squad dispatched 524 | -10/Mines | A large section of the Mines collapsed 562 | -10/Mines | Joined a pair of Derelicts in attacking an 0b10 outpost 628 | -10/Mines | Discovered new exit (range 13) 642 | -10/Mines | Entered Materials 642 | -9/Materials | Evolved 2 slots: Utility x2 838 | -9/Materials | Discovered new exit (range 18) 1108 | -9/Materials | Discovered new exit (range 9) 1152 | -9/Materials | Identified exit to Materials 1366 | -9/Materials | Core integrity fell below 50% 1401 | -9/Materials | Lost 3 parts (2n1u) 1438 | -9/Materials | Core integrity fell below 20% 1442 | -9/Materials | First assault squad dispatched 1526 | -9/Materials | Destroyed self with Grenade Launcher Last Messages --------------- 01482_ M-13 Machinist repairs Welding Torch. 01482_ K-01 Serf collects debris. 01482_ Acquired 60 matter. 01496_ G-34 Mercenary destroyed. 01500_ Acquired 12 matter. 01502_ K-01 Serf cleans the Electrolysis Chamber. 01503_ Acquired 6 matter. 01504_ K-01 Serf collects debris. 01509_ K-01 Serf cleans the Electrolysis Chamber. 01513_ K-01 Serf collects debris. 01513_ Critical hit (Burn: +37). 01515_ K-01 Serf collects debris. 01515_ Hvy. Assault Rifle destroyed. 01517_ G-47 Trooper destroyed. 01518_ K-01 Serf collects debris. 01519_ Deuterium Engine destroyed. 01520_ Electrolysis Chamber disabled. 01520_ M-13 Machinist destroyed. 01523_ G-34 Mercenary destroyed. 01526_ Wheel destroyed. Map ----- +----------------------------------------------------+ | ?????????????????????????????????????????????????? | | ?????????????????????????????????????????????????? | | ?????????????????????????????????????????????????? | | ?????????????????????????????????????????????????? | | ?????????????????????????????????????????????????? | | ?????????????????????????????????????????????????? | | ?????????????????????????????????????????????????? | | ?????????????????????????????????????????????????? | | ??????????????????????? ??????????????????????? | | ??????????????????????? ??????????????????????? | | ??????????????? ????? ?????????????????????? | | ###???????????? ????# ??????????????????????? | | #???????????# ????# ??????????????????????? | | #???????????+ #???# ??????????????????????? | | #???????????# #???# ??????????????????????? | | #???????????# #???# #??????????????????????? | | #???????????# #???# #??????????????????????? | | #???????????#% #???# #??????????????????????? | | #???????????# % #???# #??????????????????????? | | #???????????# #???# #??????????????????????? | | ###???????????# #???# #??????????????????????? | | ??????????????# #???# #??????????????????????? | | ###???????????# #?### ???????????????????????? | | ????????????# ### #######?????????????????? | | ????????????# ## [ #?????????????????? | | ????????????## ## [ @ #?????????????????? | | ?????????????## ## * % % #?????????????????? | | ###############* ## % """ #?????????????????? | | *%==* =!%= ## " """ #?????????????????? | | !!*!####=%%####u "g""" #?????????????????? | | =|!=#??#*% + t #?????????????????? | | #??##+##### #?????????????????? | | ########## #?? ###########?????????????????? | | ?????????# #?""" """ #???????????????????????????? | | ?????????# # """ """ #???????????????????????????? | | ?????????# # """ """ #???????????????????????????? | | ?????????# # #???????????????????????????? | | ?????????# # ! #???????????????????????????? | | ?????????# #? #???????????????????????????? | | ?????????#%#?? ?????????????????????????????? | | ?????????# #??######?????????????????????????????? | | ?????????# #?????????????????????????????????????? | | ?????????# #?????????????????????????????????????? | | ?????????# #?????????????????????????????????????? | | ?????????#!#?????????????????????????????????????? | | ?????????#%#?????????????????????????????????????? | | ?????????#*#?????????????????????????????????????? | | ?????????#%#?????????????????????????????????????? | | ?????????#%#?????????????????????????????????????? | | ??######## #?????????????????????????????????????? | +----------------------------------------------------+ Best States ------------- Heat Dissipation 28 Energy Generation 14 Energy Capacity 275 Matter Stores 300 Matter Capacity 300 Sight Range 18 Robot Scan Range 14 Terrain Scan Density 10 Evasion (%) 55 Item Schematics ----------------- None Robot Schematics ------------------ None Fabricated ------------ Nothing Alien Tech Used ----------------- None Achievements -------------- None Challenges ------------ None Game ------ Seed AdvancedAssembledNanovents Manual? 0 Play Time 00:09:25 Cumulative 746.0 hours Start 2024.06.01 @ 10:19:57 End 2024.06.01 @ 10:30:18 Sessions 1 Manual Loads 0 Difficulty Rogue Special Mode None Game No. 822 Rogue 547 Adventurer 123 Explorer 152 Win Type - Total 26 Types 20/0/4/1/0/0/0/1/0 Lore% 84 Gallery% 92 Achievement% 76 Wizard Run 0 Options --------- Layout 0 ASCII 0 Keyboard 1 Movement Numpad Keybinds 0 Fullscreen 2 Font 18/Terminus Map View 76x50 Zoom Use 0% Tactical HUD 1 Map Filters NONE Filters NONE Steam 1 RUN: dcd42a11-ef1b-433e-aedc-821654022129